lending/lending_fUSD_20260206
["ID","MTS","AMOUNT","RATE_DAILY","PERIOD"]
[404672816,1770409846251,-792.76026567,0.00010167,2]
[404672817,1770409846260,-16710.70965252,0.00018,2]
[404672822,1770409846307,-3035.22971693,0.00018,2]
[404672824,1770409846319,-255.58723631,0.00018,2]
[404672827,1770409846333,-825761.51364151,0.00018,2]
[404672831,1770409846471,-205500.0,0.00018,2]
[404672832,1770409846483,-1296.67234484,0.00018,2]
[404672834,1770409874150,1600.0,0.00026679,120]
[404672836,1770409913421,200.0,0.0003561,120]
[404672837,1770409928591,2353.77864379,0.00035616,120]
[404672838,1770409938716,300.0,9.7e-05,3]
[404672839,1770409940849,700.0,9.8e-05,3]
[404672840,1770409942928,1000.0,9.9e-05,3]
[404672841,1770409945021,1400.0,0.0001,3]
[404672842,1770409968838,153.19,9.464e-05,2]
[404672843,1770410000997,500.0,0.00034559,120]
[404672844,1770410017297,799.0,0.00035616,120]
[404672845,1770410163444,659.27,0.0003561,120]
[404672846,1770410234306,799.0,0.00035616,120]
[404672847,1770410441298,799.0,0.00035616,120]
[404672848,1770410640318,737.49,0.00035616,120]
[404672849,1770410784324,3008.91,9.435e-05,2]
[404672850,1770410838253,200.0,9.5e-05,3]
[404672851,1770410840344,400.0,9.6e-05,3]
[404672852,1770410842439,600.0,9.7e-05,3]
[404672853,1770410844527,800.0,9.8e-05,3]
[404672854,1770410846613,1000.0,9.9e-05,3]
[404672855,1770410848711,200.0,0.0001,3]
[404672857,1770410962235,-319.58830385,9.523e-05,2]
[404672862,1770411031467,-776.97,9.523e-05,2]
[404672863,1770411031483,-814.47785732,9.523e-05,2]
[404672864,1770411031495,-1292.2457146,9.523e-05,2]
[404672865,1770411031507,-2229.71779747,9.523e-05,2]
[404672866,1770411031537,-66.48032676,9.523e-05,2]
[404672867,1770411031548,-300.0,9.523e-05,2]
[404672868,1770411031560,-228.0,9.523e-05,2]
[404672869,1770411031572,-300.0,9.571e-05,2]
[404672870,1770411031584,-250.0,9.575e-05,2]
[404672871,1770411031596,-250.0,9.608e-05,2]
[404672872,1770411031607,-150.0,9.628e-05,2]
[404672873,1770411031618,-976.0,9.628e-05,2]
[404672874,1770411031629,-1200.0,9.628e-05,2]
[404672875,1770411031640,-196.76491563,9.629e-05,2]
[404672876,1770411031651,-500.0,9.629e-05,2]
[404672877,1770411031662,-170.87725816,9.629e-05,2]
[404672878,1770411031674,-499.82199337,9.629e-05,2]
[404672879,1770411031684,-500.0,9.629e-05,2]
[404672880,1770411031694,-500.0,9.629e-05,2]
[404672881,1770411031704,-500.0,9.629e-05,2]
[404672882,1770411031718,-500.0,9.629e-05,2]
[404672883,1770411031727,-233.92759524,9.629e-05,2]
[404672884,1770411031737,-500.0,9.629e-05,2]
[404672885,1770411031747,-454.84449333,9.629e-05,2]
[404672886,1770411031757,-266967.12724506,9.63e-05,2]
[404672887,1770411031768,-856.63891136,9.63e-05,2]
[404672888,1770411031781,-3639.61909237,9.63e-05,2]
[404672894,1770411037444,-1306.8598632,9.63e-05,2]
[404672895,1770411037454,-820.15866243,9.63e-05,2]
[404672896,1770411037466,-1000.85245562,9.63e-05,2]
[404672897,1770411037483,-232758.39376996,9.63e-05,2]
[404672898,1770411037492,-55872.95588805,0.00010077,2]
[404672899,1770411037501,-1458.16793429,0.000101,2]
[404672900,1770411037511,-1446.63043852,0.00010125,2]
[404672901,1770411037520,-878.84632795,0.00010125,2]
[404672902,1770411037529,-1911.98,0.00010162,2]
[404672903,1770411037538,-150.0,0.00010173,2]
[404672904,1770411037548,-258.11731322,0.0001019,2]
[404672905,1770411037557,-3500000.0,0.000102,2]
[404672906,1770411037567,-150.99,0.00010225,2]
[404672907,1770411037576,-9999.99,0.00010264,2]
[404672908,1770411037586,-150.99,0.00010264,2]
[404672909,1770411037595,-5274.08,0.00010264,2]
[404672910,1770411037605,-9999.99,0.00010264,2]
[404672911,1770411037614,-9999.99,0.00010264,2]
[404672912,1770411037624,-9999.99,0.00010264,2]
[404672913,1770411037633,-999.99,0.00010264,2]
[404672914,1770411037643,-299.99,0.0001028,2]
[404672915,1770411037653,-10073.55,0.0001028,2]
[404672916,1770411037662,-9999.99,0.0001028,2]
[404672917,1770411037672,-310.94,0.0001028,2]
[404672918,1770411037681,-421.997,0.00010294,2]
[404672919,1770411037691,-2500.0,0.00010294,2]
[404672920,1770411037701,-95061.09954861,0.000103,2]
[404672921,1770411037711,-151.0,0.00010387,2]
[404672922,1770411037720,-151.0,0.00010387,2]
[404672923,1770411037730,-151.0,0.00010387,2]
[404672924,1770411037740,-151.0,0.00010387,2]
[404672925,1770411037749,-151.0,0.00010387,2]
[404672926,1770411037759,-151.0,0.00010387,2]
[404672927,1770411037768,-151.0,0.00010387,2]
[404672928,1770411037778,-151.0,0.00010387,2]
[404672929,1770411037787,-151.0,0.00010387,2]
[404672930,1770411037797,-151.0,0.00010387,2]
[404672931,1770411037806,-151.0,0.00010387,2]
[404672932,1770411037815,-151.0,0.00010387,2]
[404672933,1770411037823,-151.0,0.00010387,2]
[404672934,1770411037833,-151.0,0.00010387,2]
[404672935,1770411037843,-151.0,0.00010387,2]
[404672936,1770411037852,-151.0,0.00010387,2]
[404672937,1770411037862,-151.0,0.00010387,2]
[404672938,1770411037872,-151.0,0.00010387,2]
[404672939,1770411037881,-151.0,0.00010387,2]
[404672940,1770411037890,-151.0,0.00010387,2]
[404672941,1770411037899,-151.0,0.00010387,2]
[404672942,1770411037909,-151.0,0.00010387,2]
[404672943,1770411037918,-151.0,0.00010387,2]
[404672944,1770411037927,-151.0,0.00010387,2]
[404672945,1770411037937,-151.0,0.00010387,2]
[404672946,1770411037946,-926.80859507,0.00010465,2]
[404672947,1770411037955,-500.0,0.00010475,2]
[404672948,1770411037966,-300.0,0.00010475,2]
[404672949,1770411037975,-250.0,0.00010475,2]
[404672950,1770411037984,-300.0,0.00010475,2]
[404672951,1770411037994,-300.0,0.00010475,2]
[404672952,1770411038003,-1059.78,0.00010494,2]
[404672953,1770411038013,-151.0,0.00010497,2]
[404672954,1770411038022,-151.0,0.00010497,2]
[404672955,1770411038032,-1500000.0,0.000105,2]
[404672956,1770411038041,-206.16113246,0.00010565,2]
[404672957,1770411038051,-1059.78,0.00010768,2]
[404672958,1770411038060,-209.57,0.00010791,2]
[404672959,1770411038069,-2541.06242217,0.000109,2]
[404672960,1770411038078,-150.0,0.00010959,2]
[404672961,1770411038087,-2204.45,0.00010959,2]
[404672962,1770411038263,-166.66,0.00010959,2]
[404672963,1770411038273,-177.69479531,0.00010959,2]
[404672964,1770411038283,-2541.06242212,0.00011023,2]
[404672965,1770411038292,-1059.78,0.00011042,2]
[404672966,1770411038302,-166.66,0.00011068,2]
[404672967,1770411038311,-33301.6812,0.00011098,2]
[404672968,1770411038321,-1000.0,0.00011098,2]
[404672969,1770411038330,-232.02367866,0.00011099,2]
[404672970,1770411038339,-232.02367864,0.00011099,2]
[404672971,1770411038348,-232.02367864,0.00011099,2]
[404672972,1770411038358,-232.02367864,0.00011099,2]
[404672973,1770411038367,-232.02367864,0.00011099,2]
[404672974,1770411038376,-232.02367864,0.00011099,2]
[404672975,1770411038386,-232.02367864,0.00011099,2]
[404672976,1770411038395,-232.02367864,0.00011099,2]
[404672977,1770411038404,-232.02367864,0.00011099,2]
[404672978,1770411038414,-232.02367864,0.00011099,2]
[404672979,1770411038423,-1427.53696273,0.00011099,2]
[404672980,1770411038433,-1427.53696266,0.00011099,2]
[404672981,1770411038442,-1427.53696266,0.00011099,2]
[404672982,1770411038452,-1427.53696266,0.00011099,2]
[404672983,1770411038462,-166.66,0.00011178,2]
[404672984,1770411038471,-166.66,0.00011288,2]
[404672985,1770411038481,-1059.78,0.00011316,2]
[404672986,1770411038491,-166.66,0.00011397,2]
[404672987,1770411038501,-166.66,0.00011507,2]
[404672988,1770411038510,-1059.78,0.0001159,2]
[404672989,1770411038519,-926.80859507,0.00011704,2]
[404672990,1770411038528,-1458.16793429,0.00011752,2]
[404672991,1770411038538,-1059.78,0.00011864,2]
[404672992,1770411038547,-1059.78,0.00012138,2]
[404672993,1770411038556,-2541.06242212,0.00012169,2]
[404672994,1770411038566,-206.16113244,0.00012399,2]
[404672995,1770411038575,-1059.78,0.00012412,2]
[404672996,1770411038584,-600.0,0.00012428,2]
[404672997,1770411038594,-250.0,0.00012583,2]
[404672998,1770411038603,-1059.78,0.00012685,2]
[404672999,1770411038612,-926.80859507,0.00012943,2]
[404673000,1770411038622,-1059.78,0.00012959,2]
[404673001,1770411038632,-3524.82,0.0001297,2]
[404673002,1770411038641,-1059.78,0.00013233,2]
[404673003,1770411038651,-2541.06242212,0.00013315,2]
[404673004,1770411038660,-1458.16793429,0.00013404,2]
[404673005,1770411038670,-1059.83175409,0.00013507,2]
[404673006,1770411038680,-276.32,0.00013631,2]
[404673007,1770411038690,-205.05385539,0.00013698,2]
[404673008,1770411038699,-225.44,0.0001381,2]
[404673009,1770411038709,-1446.63043851,0.00014013,2]
[404673010,1770411038719,-878.84632795,0.00014013,2]
[404673011,1770411038729,-926.80859507,0.00014183,2]
[404673012,1770411038739,-1911.98,0.00014226,2]
[404673013,1770411038749,-206.16113244,0.00014233,2]
[404673014,1770411038759,-2541.06242212,0.00014462,2]
[404673015,1770411038768,-1029.4,0.00014841,2]
[404673016,1770411038778,-1029.4,0.00014869,2]
[404673017,1770411038787,-1029.4,0.00014896,2]
[404673018,1770411038797,-1029.4,0.00014923,2]
[404673019,1770411038807,-1029.4,0.00014951,2]
[404673020,1770411038816,-1029.4,0.00014978,2]
[404673021,1770411038826,-1029.4,0.00015005,2]
[404673022,1770411038835,-1029.4,0.00015033,2]
[404673023,1770411038845,-1458.16793429,0.00015056,2]
[404673024,1770411038854,-1029.4,0.0001506,2]
[404673025,1770411038864,-225.37,0.00015068,2]
[404673026,1770411038873,-1029.4,0.00015088,2]
[404673027,1770411038882,-1029.4,0.00015115,2]
[404673028,1770411038891,-1029.4,0.00015142,2]
[404673029,1770411038900,-1029.4,0.0001517,2]
[404673030,1770411038910,-1029.4,0.00015197,2]
[404673031,1770411038920,-1029.4,0.00015224,2]
[404673032,1770411038930,-1029.4,0.00015252,2]
[404673033,1770411038939,-1029.4,0.00015279,2]
[404673034,1770411038948,-1029.4,0.00015306,2]
[404673035,1770411038958,-1029.4,0.00015334,2]
[404673036,1770411038969,-1029.4,0.00015361,2]
[404673037,1770411038978,-926.80859507,0.00015422,2]
[404673038,1770411038988,-2541.06242212,0.00015608,2]
[404673039,1770411038997,-206.16113244,0.00016066,2]
[404673040,1770411039007,-453.98370731,0.00016438,2]
[404673041,1770411039017,-55748.4,0.00016646,2]
[404673042,1770411039026,-926.80859507,0.00016661,2]
[404673043,1770411039035,-1458.16793429,0.00016708,2]
[404673044,1770411039044,-2541.06242212,0.00016754,2]
[404673045,1770411039053,-234.643,0.00016755,2]
[404673046,1770411039063,-2782.014,0.00016755,2]
[404673047,1770411039074,-1500.0,0.000168,2]
[404673048,1770411039084,-500.0,0.00017,2]
[404673049,1770411039093,-557.31,0.00017137,2]
[404673050,1770411039103,-1500.0,0.000172,2]
[404673051,1770411039112,-390.259499,0.00017309,7]
[404673052,1770411039122,-305.85316486,0.0001731,2]
[404673053,1770411039131,-200.0,0.00017513,2]
[404673054,1770411039140,-151.22058322,0.00017557,2]
[404673055,1770411039150,-1500.0,0.000176,2]
[404673056,1770411039161,-200.0,0.000176,6]
[404673057,1770411039171,-1499.20404486,0.0001764,2]
[404673058,1770411039180,-200.0,0.000177,6]
[404673059,1770411039189,-200.0,0.00017732,2]
[404673060,1770411039198,-1600.0,0.00017786,2]
[404673061,1770411039209,-6624.05669369,0.000178,2]
[404673062,1770411039221,-200.0,0.000178,6]
[404673063,1770411039231,-156.3786,0.0001782,2]
[404673064,1770411039240,-156.3786,0.0001782,2]
[404673065,1770411039249,-200.0,0.0001786,2]
[404673066,1770411039258,-500.0,0.000179,2]
[404673067,1770411039267,-10000.0,0.000179,2]
[404673068,1770411039276,-206.16113244,0.000179,2]
[404673069,1770411039285,-926.80859507,0.000179,2]
[404673070,1770411039294,-529.0,0.000179,6]
[404673071,1770411039303,-2541.06242212,0.000179,2]
[404673072,1770411039312,-1446.63043851,0.000179,2]
[404673073,1770411039321,-1980.0,0.000179,2]
[404673075,1770411039330,-200.0,0.0001796,2]
[404673076,1770411039339,-1150.113882,0.00017988,2]
[404673078,1770411039348,-116086.7441333,0.00017988,2]
[404673079,1770411039357,-29511.1744569,0.00017988,2]
[404673080,1770411039365,-230.49160217,0.00017997,2]
[404673081,1770411039375,-300.0,0.00017999,2]
[404673083,1770411039384,-666.0,0.00017999,2]
[404673085,1770411039393,-300.0,0.00017999,2]
[404673086,1770411039403,-476620.68017942,0.00018,2]
[404673087,1770411039417,-637.74195,0.00018,2]
[404673088,1770411039428,-3751.93058712,0.00018,2]
[404673089,1770411039439,-11433.43838201,0.00018,2]
[404673091,1770411039450,-505.0,0.00018,2]
[404673093,1770411039461,-3321.00205284,0.00018,2]
[404673094,1770411039474,-1744.9571283,0.00018,2]
[404673096,1770411039661,-292.513802,0.00018,2]
[404673097,1770411039772,-5218968.8296182,0.00018,2]
[404673119,1770411043071,-1427.53696266,0.00011099,2]
[404673120,1770411043080,-337.99553486,0.00011909,2]
[404673123,1770411043094,-531.31399237,0.00011909,2]
[404673125,1770411043106,-293.47590332,0.00011909,2]
[404673128,1770411043117,-295.38250374,0.00011909,2]
[404673130,1770411043125,-1458.16793429,0.00013539,2]
[404673131,1770411043134,-1122.76165313,0.00016798,2]
[404673132,1770411043812,-335.40628116,0.00016798,2]
[404673133,1770411043822,-878.84632795,0.000179,2]
[404673134,1770411043831,-11080.32509089,0.00018,2]
[404673135,1770411043841,-19495.22778541,0.00018,2]
[404673168,1770411045472,-300.0,0.00018,2]
[404673169,1770411045528,-1033.2594566,0.00018,2]
[404673177,1770411093262,2782.014,9.339e-05,2]
[404673178,1770411093403,234.643,9.339e-05,2]
[404673179,1770411153825,307.84608917,9.428e-05,2]
[404673180,1770411443817,3513.40691083,9.428e-05,2]
[404673181,1770411443845,10000.01,9.428e-05,2]
[404673182,1770411443873,10000.01,9.428e-05,2]
[404673183,1770411443898,10000.01,9.428e-05,2]
[404673184,1770411443925,10000.01,9.428e-05,2]
[404673185,1770411443951,10000.01,9.428e-05,2]
[404673186,1770411443977,10000.01,9.428e-05,2]
[404673187,1770411444002,10000.01,9.428e-05,2]
[404673188,1770411444028,10000.01,9.428e-05,2]
[404673189,1770411444054,10000.01,9.428e-05,2]
[404673190,1770411459244,-3676.34112476,9.428e-05,2]
[404673191,1770411459351,-10000.01,9.428e-05,2]
[404673192,1770411459478,-10000.01,9.428e-05,2]
[404673193,1770411459617,-10000.01,9.428e-05,2]
[404673194,1770411459741,-10000.01,9.428e-05,2]
[404673195,1770411459869,-10000.01,9.428e-05,2]
[404673196,1770411481173,300.0,9.427e-05,2]
[404673197,1770411494409,1008.00286901,0.00035616,120]
[404673198,1770411541192,300.0,9.427e-05,2]
[404673199,1770411557405,744.75235351,9.428e-05,2]
[404673200,1770411574863,195.32267062,9.427e-05,2]
[404673201,1770411574914,171.69480856,9.427e-05,2]
[404673202,1770411574956,500.0,9.427e-05,2]
[404673203,1770411575180,500.0,9.427e-05,2]
[404673204,1770411575284,248.62103757,9.427e-05,2]
[404673205,1770411578181,196.34070519,9.427e-05,2]
[404673206,1770411578221,500.0,9.427e-05,2]
[404673207,1770411578264,500.0,9.427e-05,2]
[404673208,1770411578306,500.0,9.427e-05,2]
[404673209,1770411578346,500.0,9.427e-05,2]
[404673210,1770411578384,500.0,9.427e-05,2]
[404673211,1770411578424,500.0,9.427e-05,2]
[404673212,1770411578466,500.0,9.427e-05,2]
[404673213,1770411578505,500.0,9.427e-05,2]
[404673214,1770411578545,500.0,9.427e-05,2]
[404673215,1770411578585,500.0,9.427e-05,2]
[404673216,1770411578625,500.0,9.427e-05,2]
[404673217,1770411578673,500.0,9.427e-05,2]
[404673218,1770411578716,541.90181671,9.427e-05,2]
[404673219,1770411578757,301.37660784,9.427e-05,2]
[404673220,1770411578785,198.62339216,9.427e-05,2]
[404673221,1770411578822,500.0,9.427e-05,2]
[404673222,1770411578867,500.0,9.427e-05,2]
[404673223,1770411579221,500.0,9.427e-05,2]
[404673224,1770411579263,500.0,9.427e-05,2]
[404673225,1770411579299,500.0,9.427e-05,2]
[404673226,1770411579335,500.0,9.427e-05,2]
[404673227,1770411579374,500.0,9.427e-05,2]
[404673228,1770411579412,500.0,9.427e-05,2]
[404673229,1770411579449,500.0,9.427e-05,2]
[404673230,1770411579483,500.0,9.427e-05,2]
[404673231,1770411589660,2176.98248849,9.428e-05,2]
[404673232,1770411601526,300.0,9.427e-05,2]
[404673233,1770411601751,150.0,9.427e-05,2]
[404673234,1770411603996,228.0,9.428e-05,2]
[404673235,1770411644106,150.0,9.401e-05,2]
[404673236,1770411661292,300.0,9.427e-05,2]
[404673237,1770411689454,496.501569,9.428e-05,2]
[404673238,1770411693317,999.90255035,9.24e-05,2]
[404673239,1770411693345,1225.70844965,9.24e-05,2]
[404673240,1770411693512,187.714,9.24e-05,2]
[404673241,1770411695179,792.76026567,9.428e-05,2]
[404673242,1770411709933,1451.321659,9.428e-05,2]
[404673243,1770411721225,300.0,9.427e-05,2]
[404673244,1770411744644,-88460.0,9.428e-05,2]
[404673245,1770411761556,6042.50562568,9.328e-05,2]
[404673246,1770411761581,10000.01,9.328e-05,2]
[404673247,1770411761605,10000.01,9.328e-05,2]
[404673248,1770411761630,10000.01,9.328e-05,2]
[404673249,1770411761654,10000.01,9.328e-05,2]
[404673250,1770411761680,10000.01,9.328e-05,2]
[404673251,1770411761705,10000.01,9.328e-05,2]
[404673252,1770411761729,10000.01,9.328e-05,2]
[404673253,1770411761754,10000.01,9.328e-05,2]
[404673254,1770411761778,10000.01,9.328e-05,2]
[404673255,1770411819749,331.001046,9.328e-05,2]
[404673256,1770411830096,967.54777266,9.328e-05,2]
[404673257,1770411871710,500.0,9.327e-05,2]
[404673258,1770411871764,374.0347263,9.327e-05,2]
[404673259,1770411873132,500.0,9.327e-05,2]
[404673260,1770411873170,500.0,9.327e-05,2]
[404673261,1770411873206,337.98909075,9.327e-05,2]
[404673262,1770411901194,300.0,9.327e-05,2]
[404673263,1770411902547,-8000.0,9.328e-05,2]
[404673264,1770411950025,220.667364,9.328e-05,2]
[404673265,1770411950439,645.03184844,9.328e-05,2]
[404673266,1770411961571,300.0,9.327e-05,2]
[404673267,1770412021584,300.0,9.327e-05,2]
[404673268,1770412070570,430.0212323,9.328e-05,2]
[404673269,1770412081370,4293.71691955,9.228e-05,2]
[404673270,1770412081399,10000.01,9.228e-05,2]
[404673271,1770412081427,10000.01,9.228e-05,2]
[404673272,1770412081459,10000.01,9.228e-05,2]
[404673273,1770412081485,10000.01,9.228e-05,2]
[404673274,1770412081511,10000.01,9.228e-05,2]
[404673275,1770412081536,10000.01,9.228e-05,2]
[404673276,1770412081562,10000.01,9.228e-05,2]
[404673277,1770412081586,10000.01,9.228e-05,2]
[404673278,1770412081613,10000.01,9.228e-05,2]
[404673280,1770412112252,611.82430841,9.227e-05,2]
[404673281,1770412141202,300.0,9.227e-05,2]
[404673282,1770412173315,151.0,9.225e-05,2]
[404673283,1770412173725,151.0,9.225e-05,2]
[404673284,1770412190919,286.68082154,9.228e-05,2]
[404673285,1770412201330,300.0,9.227e-05,2]
[404673286,1770412203985,226.0,9.228e-05,2]
[404673294,1770412231603,-1892.37996375,9.228e-05,2]
[404673297,1770412231659,-10078.44371312,9.228e-05,2]
[404673298,1770412231671,-1416.0,9.228e-05,2]
[404673299,1770412231721,-454.11874776,9.228e-05,2]
[404673300,1770412231784,-407.0,9.228e-05,2]
[404673301,1770412231796,-295.99999997,9.228e-05,2]
[404673302,1770412231808,-5469.63784536,9.228e-05,2]
[404673314,1770412237687,-3385692.61281049,9.228e-05,2]
[404673315,1770412237697,-2500.0,9.228e-05,2]
[404673316,1770412237707,-1500000.0,9.228e-05,2]
[404673317,1770412237716,-250.0,9.278e-05,2]
[404673318,1770412237726,-250.0,9.375e-05,2]
[404673319,1770412237735,-300.0,9.388e-05,2]
[404673320,1770412237746,-300.0,9.485e-05,2]
[404673321,1770412237755,-33301.6812,9.53e-05,2]
[404673322,1770412237764,-1274.60503352,9.632e-05,2]
[404673323,1770412237774,-151.0,0.0001,2]
[404673324,1770412237784,-151.0,0.0001,2]
[404673325,1770412237793,-151.0,0.0001,2]
[404673326,1770412237803,-151.0,0.0001,2]
[404673327,1770412237812,-151.0,0.0001,2]
[404673328,1770412237821,-151.0,0.0001,2]
[404673329,1770412237831,-151.0,0.0001,2]
[404673330,1770412237841,-151.0,0.0001,2]
[404673331,1770412237851,-151.0,0.0001,2]
[404673332,1770412237860,-151.0,0.0001,2]
[404673333,1770412237870,-151.0,0.0001,2]
[404673334,1770412237879,-151.0,0.0001,2]
[404673335,1770412237889,-151.0,0.0001,2]
[404673336,1770412237898,-151.0,0.0001,2]
[404673337,1770412237907,-151.0,0.0001,2]
[404673338,1770412237917,-151.0,0.0001,2]
[404673339,1770412237926,-151.0,0.0001,2]
[404673340,1770412237936,-151.0,0.0001,2]
[404673341,1770412237945,-151.0,0.0001,2]
[404673342,1770412237955,-151.0,0.0001,2]
[404673343,1770412237965,-151.0,0.0001,2]
[404673344,1770412237974,-151.0,0.0001,2]
[404673345,1770412237984,-151.0,0.0001,2]
[404673346,1770412237997,-151.0,0.0001,2]
[404673347,1770412238006,-151.0,0.0001,2]
[404673348,1770412238015,-151.0,0.0001,2]
[404673349,1770412238025,-151.0,0.0001,2]
[404673350,1770412238034,-151.0,0.0001,2]
[404673351,1770412238043,-151.0,0.0001,2]
[404673352,1770412238053,-151.0,0.0001,2]
[404673353,1770412238063,-151.0,0.0001,2]
[404673354,1770412238072,-151.0,0.0001,2]
[404673355,1770412238081,-151.0,0.0001,2]
[404673356,1770412238091,-151.0,0.0001,2]
[404673357,1770412238100,-181.84086708,0.0001,2]
[404673358,1770412238109,-215.09776102,0.0001,2]
[404673359,1770412238119,-150.0,0.00010097,2]
[404673360,1770412238128,-150.0,0.00010097,2]
[404673361,1770412238137,-420.0,0.0001015,2]
[404673362,1770412238147,-250.0,0.00010151,2]
[404673363,1770412238156,-200.0,0.00010152,2]
[404673364,1770412238166,-95061.09954861,0.000102,2]
[404673365,1770412238175,-9999.99,0.000102,2]
[404673366,1770412238184,-299.99,0.000102,2]
[404673367,1770412238194,-150.99,0.000102,2]
[404673368,1770412238203,-9999.99,0.000102,2]
[404673369,1770412238212,-9999.99,0.000102,2]
[404673370,1770412238223,-5274.08,0.000102,2]
[404673371,1770412238232,-999.99,0.000102,2]
[404673372,1770412238241,-10073.55,0.000102,2]
[404673373,1770412238251,-310.94,0.000102,2]
[404673374,1770412238260,-9999.99,0.000102,2]
[404673375,1770412238270,-9999.99,0.000102,2]
[404673376,1770412238280,-150.99,0.000102,2]
[404673377,1770412238290,-300.0,0.00010261,2]
[404673378,1770412238300,-500.0,0.00010261,2]
[404673379,1770412238309,-300.0,0.00010261,2]
[404673380,1770412238319,-1000.0,0.000104,2]
[404673381,1770412238328,-421.997,0.000104,2]
[404673382,1770412238338,-500.0,0.00010572,2]
[404673383,1770412238347,-55957.11847704,0.00010599,2]
[404673384,1770412238356,-231.94764953,0.00010959,2]
[404673385,1770412238366,-232.02367866,0.00011099,2]
[404673386,1770412238379,-232.02367864,0.00011099,2]
[404673387,1770412238389,-1293.79011009,0.00011099,2]
[404673388,1770412238399,-1293.79011009,0.00011099,2]
[404673389,1770412238408,-1293.79011009,0.00011155,2]
[404673390,1770412238417,-232.02367864,0.00011155,2]
[404673391,1770412238427,-587.0,0.00011165,2]
[404673392,1770412238436,-1274.60503352,0.00011292,2]
[404673393,1770412238445,-1293.79011009,0.00012119,2]
[404673394,1770412238455,-232.02367864,0.00012119,2]
[404673395,1770412238465,-250.0,0.00012194,2]
[404673396,1770412238476,-823.0,0.00012282,2]
[404673397,1770412238485,-1274.60503352,0.00012952,2]
[404673398,1770412238496,-160.0,0.0001306,2]
[404673399,1770412238507,-4584.8,0.00013065,2]
[404673400,1770412238517,-185.33,0.00013075,2]
[404673401,1770412238526,-1293.79011009,0.00013082,2]
[404673402,1770412238535,-232.02367864,0.00013082,2]
[404673403,1770412238545,-500.0,0.00013451,2]
[404673404,1770412238555,-1152.0,0.0001351,2]
[404673405,1770412238564,-286.68082152,0.00013514,2]
[404673406,1770412238573,-230.49,0.00013532,2]
[404673407,1770412238582,-236.94,0.00013569,2]
[404673408,1770412238592,-13440.81,0.00013603,2]
[404673409,1770412238601,-600.0,0.00013664,2]
[404673410,1770412238610,-205.05385539,0.00013698,2]
[404673411,1770412238619,-511.81,0.00013699,2]
[404673412,1770412238629,-7873.41,0.00013699,2]
[404673413,1770412238638,-257.9,0.00014025,2]
[404673414,1770412238647,-1293.79011009,0.00014046,2]
[404673415,1770412238656,-232.02367864,0.00014046,2]
[404673416,1770412238666,-241.54,0.00014253,2]
[404673417,1770412238676,-511.81,0.00014384,2]
[404673418,1770412238686,-1274.60503352,0.00014613,2]
[404673419,1770412238695,-150.0,0.00014838,2]
[404673420,1770412238705,-1613.0,0.00014861,2]
[404673421,1770412238714,-250.0,0.00015,2]
[404673422,1770412238723,-1293.79011009,0.00015009,2]
[404673423,1770412238733,-232.02367864,0.00015009,2]
[404673424,1770412238743,-1985.0,0.00015043,2]
[404673425,1770412238753,-511.81,0.00015068,2]
[404673426,1770412238765,-511.81,0.00015753,2]
[404673427,1770412238774,-1293.79011009,0.00015973,2]
[404673428,1770412238783,-232.02367864,0.00015973,2]
[404673429,1770412238793,-1000.0,0.00016076,2]
[404673430,1770412238803,-1274.60503352,0.00016273,2]
[404673431,1770412238812,-1282.0,0.00016347,2]